bitfinex/quotes_SOLUSD_20250129
["timestamp","ask_amount","ask_price","bid_price","bid_amount"]
[1738112349048,32.70692907,229.3,229.22,32.70692907]
[1738112350051,32.70692907,229.3,229.21,10.5884]
[1738112351148,0.03,229.28,229.21,10.5884]
[1738112352559,32.73692907,229.28,229.21,10.5884]
[1738112353022,82.5,229.27,229.21,6.2257]
[1738112353221,32.70692907,229.24,229.17,1.5465]
[1738112355448,32.70692907,229.22,229.17,1.5465]
[1738112356255,82.5,229.26,229.18,32.70692907]
[1738112356440,82.5,229.26,229.2,32.70692907]
[1738112357650,82.5,229.26,229.2,37.06972907]
[1738112358453,32.73692907,229.28,229.2,37.06972907]
[1738112358454,0.03,229.28,229.24,20.0]
[1738112358658,0.03,229.28,229.24,32.70692907]
[1738112358855,0.03,229.28,229.22,32.70692907]
[1738112359154,0.03,229.28,229.2,32.70692907]
[1738112359343,32.70692907,229.25,229.17,1.5465]
[1738112359958,0.03,229.28,229.14,32.70692907]
[1738112359959,20.0,229.22,229.14,32.70692907]
[1738112360129,32.70692907,229.17,229.11,1.5524]
[1738112360335,32.70692907,229.13,229.04,34.25932907]
[1738112360532,0.44147724,229.2,229.04,1.5524]
[1738112360533,20.14997277,229.12,229.04,1.5524]
[1738112360761,20.14997277,229.1,229.04,1.5524]
[1738112362036,20.14997277,229.08,229.02,0.063]
[1738112362253,20.14997277,229.06,229.02,0.063]
[1738112362457,20.14997277,229.04,229.02,0.063]
[1738112362965,82.5,229.07,229.02,0.063]
[1738112362966,20.14997277,229.06,229.02,0.063]
[1738112364565,20.14997277,229.04,229.02,0.063]
[1738112368168,106.402374,229.03,229.02,0.063]
[1738112368463,23.902374,229.03,229.02,0.063]
[1738112368664,44.49382401,229.03,229.02,0.063]
[1738112369564,20.0,228.96,228.92,0.063]
[1738112369868,20.14997277,228.93,228.92,0.063]
[1738112382686,20.14997277,228.99,228.92,0.063]
[1738112382885,20.14997277,229.03,228.95,20.14997277]
[1738112383180,20.14997277,229.03,228.92,0.063]
[1738112383181,20.14997277,229.05,228.97,20.14997277]
[1738112383349,20.14997277,229.05,228.97,26.40077277]
[1738112385071,20.14997277,229.03,228.97,6.2508]
[1738112386378,20.14997277,229.05,228.97,6.2508]
[1738112386677,20.14997277,229.05,228.97,26.40077277]
[1738112387881,20.14997277,229.05,228.97,6.2508]
[1738112388378,20.14997277,229.03,228.97,6.2508]
[1738112388986,20.14997277,228.99,228.96,1.5379]
[1738112389194,20.14997277,228.97,228.96,1.5379]
[1738112389493,20.14997277,228.99,228.96,1.5379]
[1738112389669,20.14997277,228.97,228.92,0.063]
[1738112389871,20.14997277,228.95,228.92,0.063]
[1738112394596,20.14997277,228.93,228.92,0.063]
[1738112396201,20.14997277,228.95,228.92,0.063]
[1738112396407,20.14997277,228.93,228.92,0.063]
[1738112400477,20.14997277,228.97,228.92,0.063]
[1738112400699,20.14997277,228.99,228.92,0.063]
[1738112400997,0.03,229.02,228.97,20.14997277]
[1738112401202,0.03,229.02,228.97,26.50977277]
[1738112401500,0.03,229.02,228.97,6.3598]
[1738112402009,0.03,229.02,228.99,20.14997277]
[1738112402679,12.59685439,229.11,229.01,23.902374]
[1738112402887,12.59685439,229.11,229.03,12.59685439]
[1738112403811,12.59685439,229.11,229.01,12.59685439]
[1738112403977,12.59685439,229.09,229.01,12.59685439]
[1738112404613,20.15404538,229.1,229.01,20.15404538]
[1738112405710,20.15404538,229.12,229.03,20.15404538]
[1738112406013,82.5,229.15,229.07,20.15404538]
[1738112406215,20.15404538,229.16,229.07,20.15404538]
[1738112407178,20.15404538,229.14,229.05,20.15404538]
[1738112407381,23.776884,229.11,229.04,1.5508]
[1738112407607,23.776884,229.11,229.05,20.15404538]
[1738112407910,20.15404538,229.14,229.04,5.9167]
[1738112407911,20.15404538,229.14,229.07,20.15404538]
[1738112408204,23.776884,229.11,229.04,1.5508]
[1738112408411,0.03,229.09,229.04,1.5508]
[1738112408905,23.806884,229.09,229.04,1.5508]
[1738112410289,0.03,229.09,229.04,1.5508]
[1738112414114,20.15404538,229.08,229.04,1.5508]
[1738112414494,23.776884,229.07,229.04,1.5508]
[1738112414798,23.776884,229.05,228.99,20.15404538]
[1738112414983,23.776884,229.01,228.98,1.6632]
[1738112415384,23.776884,228.99,228.97,0.063]
[1738112415611,43.93092938,228.98,228.97,0.063]
[1738112416193,43.93092938,228.98,228.92,0.063]
[1738112416194,23.776884,228.97,228.92,0.063]
[1738112416403,43.93092938,228.93,228.92,0.063]
[1738112416890,23.776884,228.93,228.92,0.063]
[1738112417213,82.5,228.97,228.92,0.063]
[1738112417506,20.15404538,229.05,228.96,20.15404538]
[1738112417807,20.15404538,229.07,228.98,20.15404538]
[1738112418110,23.776884,229.06,228.98,20.15404538]
[1738112418896,23.776884,229.04,228.96,20.15404538]
[1738112419210,23.776884,229.04,228.98,20.15404538]
[1738112419403,23.776884,229.06,228.98,20.15404538]
[1738112420706,0.03,229.04,228.98,20.15404538]
[1738112422210,23.806884,229.04,228.96,20.15404538]
[1738112422506,23.806884,229.04,228.96,40.15404538]
[1738112422705,0.03,229.04,228.98,20.15404538]
[1738112424220,23.806884,229.04,228.96,40.15404538]
[1738112424816,23.806884,229.04,228.96,20.15404538]
[1738112425012,23.806884,229.04,228.96,24.52154538]
[1738112425194,0.03,229.04,228.98,20.15404538]
[1738112426024,0.03,229.04,229.0,20.15404538]
[1738112426315,0.03,229.04,228.98,4.367]
[1738112426316,0.03,229.04,229.02,20.15404538]
[1738112426501,0.03,229.04,229.03,1.6287]
[1738112426708,0.03,229.09,229.05,20.0]
[1738112426914,0.03,229.09,229.07,20.15404538]
[1738112427202,0.03,229.09,229.05,20.0]
[1738112427203,0.03,229.09,229.05,20.15404538]
[1738112427400,20.18404538,229.09,229.04,6.6346]
[1738112427602,23.776884,229.08,229.03,1.6287]
[1738112429021,0.03,229.09,229.05,20.15404538]
[1738112430596,0.03,229.09,229.03,21.78274538]
[1738112431096,0.03,229.09,229.03,26.14894538]
[1738112431420,0.03,229.09,229.03,21.78274538]
[1738112431928,0.03,229.09,229.05,20.15404538]
[1738112432227,0.03,229.09,229.05,24.51984538]
[1738112432730,0.03,229.09,229.05,16.95767607]
[1738112432918,0.03,229.09,229.05,12.59187607]
[1738112434741,0.03,229.09,229.03,14.22057607]
[1738112436236,23.776884,229.08,229.03,1.6287]
[1738112437014,23.776884,229.08,228.99,19.22647607]
[1738112439238,20.0,228.98,228.97,0.063]
[1738112439442,12.59187607,228.99,228.97,0.063]
[1738112439623,23.776884,228.98,228.97,0.063]
[1738112440137,23.902374,228.98,228.97,0.063]
[1738112440309,30.170174,228.98,228.97,0.063]
[1738112441118,23.902374,228.98,228.97,0.063]
[1738112441639,12.59187607,229.01,228.97,0.063]
[1738112442037,82.5,229.02,228.97,0.063]
[1738112443252,12.59187607,229.05,228.98,12.59187607]
[1738112443536,13.20277899,229.14,229.04,12.59187607]
[1738112443849,12.59187607,229.13,229.04,12.59187607]
[1738112444220,23.806884,229.09,229.02,12.59187607]
[1738112444429,36.39876007,229.09,229.0,12.59187607]
[1738112444732,23.776884,229.07,229.0,20.15620577]
[1738112444933,23.776884,229.07,228.97,0.063]
[1738112444934,0.03,229.09,229.02,20.15620577]
[1738112445320,23.806884,229.09,229.02,20.15620577]
[1738112445739,23.806884,229.09,229.0,20.15620577]
[1738112446316,23.806884,229.09,228.98,20.15620577]
[1738112446317,23.776884,229.07,228.98,20.15620577]
[1738112448641,23.776884,229.05,228.98,20.15620577]
[1738112449153,23.776884,229.01,228.97,0.063]
[1738112449537,20.15620577,228.99,228.97,0.063]
[1738112449740,20.15620577,229.01,228.97,0.063]
[1738112450148,43.93308977,229.03,228.97,0.063]
[1738112450463,20.15620577,229.07,228.98,24.52330577]
[1738112450831,23.776884,229.06,228.98,24.52330577]
[1738112451461,23.776884,229.06,228.98,20.15620577]
[1738112452875,0.03,229.09,229.02,20.15620577]
[1738112453040,0.03,229.09,229.06,20.15620577]
[1738112453372,0.03,229.09,229.08,20.15620577]
[1738112454360,23.776884,229.08,229.02,1.5156]
[1738112454561,23.776884,229.05,229.02,1.5156]
[1738112456462,23.776884,229.05,229.02,1.5786]
[1738112457156,23.776884,229.05,229.02,0.063]
[1738112457667,20.15620577,229.04,229.02,0.063]
[1738112460468,23.776884,229.03,229.02,0.063]
[1738112461559,20.15620577,229.06,229.02,0.063]
[1738112462273,23.776884,229.05,229.02,0.063]
[1738112465674,23.776884,229.03,229.02,0.063]
[1738112465858,20.15620577,229.06,229.02,0.063]
[1738112467066,82.5,229.08,229.02,24.58560577]
[1738112467389,82.5,229.08,229.02,20.21920577]
[1738112468195,0.03,229.09,229.02,20.21920577]
[1738112468367,0.03,229.09,229.06,20.15620577]
[1738112468571,0.03,229.09,229.08,21.74370577]
[1738112469688,0.03,229.09,229.08,1.5875]
[1738112469878,23.806884,229.09,229.05,6.4732]
[1738112470185,23.806884,229.09,229.02,1.6827]
[1738112470568,23.776884,229.07,229.02,1.6827]
[1738112472367,23.776884,229.03,229.02,0.063]
[1738112474187,23.902374,229.03,229.02,0.063]
[1738112474388,44.50005701,229.03,229.02,0.063]
[1738112474978,0.12549,228.98,228.97,0.063]
[1738112475311,44.50005701,228.98,228.97,0.063]
[1738112477984,20.12549,228.94,228.92,0.063]
[1738112478183,43.93308977,228.93,228.92,0.063]
[1738112481014,44.05857977,228.93,228.92,0.063]
[1738112481921,64.21478554,228.93,228.92,0.063]
[1738112482918,44.05857977,228.93,228.92,0.063]
[1738112483522,64.21478554,228.93,228.92,0.063]
[1738112483813,43.93308977,228.82,228.81,0.063]
[1738112484516,23.776884,228.82,228.81,0.063]
[1738112484819,36.40030866,228.82,228.81,0.063]
[1738112485919,23.776884,228.82,228.81,0.063]
[1738112486123,12.62342466,228.88,228.81,0.063]
[1738112486292,82.5,228.87,228.81,0.063]
[1738112487409,82.5,228.87,228.82,12.62342466]
[1738112487598,12.62342466,228.92,228.84,12.62342466]
[1738112487801,82.5,228.96,228.88,12.62342466]
[1738112487802,95.12342466,228.96,228.88,12.62342466]
[1738112488425,23.776884,228.95,228.88,12.62342466]
[1738112488610,95.12342466,228.96,228.88,12.62342466]
[1738112488817,12.62342466,229.0,228.92,12.62342466]
[1738112490027,23.776884,228.99,228.9,12.62342466]
[1738112490630,20.17620901,228.94,228.86,21.82960901]
[1738112490836,23.776884,228.93,228.86,21.82960901]
[1738112491530,23.776884,228.93,228.86,1.6534]
[1738112491835,23.776884,228.93,228.86,21.82960901]
[1738112492137,23.776884,228.91,228.86,1.6534]
[1738112492304,23.776884,228.89,228.86,1.6534]
[1738112492510,23.776884,228.87,228.86,1.6534]
[1738112492717,23.776884,228.87,228.81,0.063]
[1738112492919,23.776884,228.83,228.81,0.063]
[1738112495725,43.95309301,228.82,228.81,0.063]
[1738112495924,44.07858301,228.82,228.81,0.063]
[1738112497340,0.12549,228.8,228.79,0.063]
[1738112497531,23.776884,228.76,228.75,0.063]
[1738112497857,64.07858301,228.76,228.75,0.063]
[1738112499556,43.95309301,228.76,228.75,0.063]
[1738112499841,20.17620901,228.8,228.75,0.063]
[1738112500041,20.17620901,228.82,228.75,20.23920901]
[1738112500534,23.776884,228.81,228.75,0.063]
[1738112500747,20.17620901,228.8,228.75,0.063]
[1738112501119,20.17620901,228.82,228.75,0.063]
[1738112501730,20.17620901,228.84,228.75,24.61070901]
[1738112501929,20.17620901,228.84,228.77,20.17620901]
[1738112502538,20.17620901,228.82,228.75,0.063]
[1738112503859,43.95309301,228.84,228.75,24.61070901]
[1738112505132,20.17620901,228.84,228.75,24.61070901]
[1738112505332,0.12549,228.89,228.77,20.17620901]
[1738112505333,20.17620901,228.86,228.77,20.17620901]
[1738112505534,20.17620901,228.84,228.76,7.8073]
[1738112506044,20.17620901,228.84,228.76,12.1786]
[1738112506359,20.17620901,228.86,228.77,20.17620901]
[1738112506562,20.17620901,228.88,228.81,20.17620901]
[1738112506859,20.17620901,228.9,228.81,20.17620901]
[1738112508050,20.17620901,228.88,228.81,20.17620901]
[1738112508253,20.17620901,228.83,228.77,0.063]
[1738112511157,23.776884,228.82,228.77,0.063]
[1738112515734,20.17620901,228.81,228.77,0.063]
[1738112516139,20.17620901,228.83,228.77,0.063]
[1738112517261,20.17620901,228.89,228.81,20.17620901]
[1738112519363,20.17620901,228.89,228.81,24.54660901]
[1738112520261,20.17620901,228.89,228.81,20.17620901]
[1738112520466,20.17620901,228.87,228.79,20.17620901]
[1738112520764,1.6979353,228.97,228.79,20.17620901]
[1738112520765,20.17620901,228.91,228.83,20.17620901]
[1738112521060,20.20620901,228.99,228.89,20.17620901]
[1738112521361,0.03,228.99,228.94,1.5813]
[1738112521565,0.03,228.99,228.97,20.17620901]
[1738112521766,0.03,228.99,228.98,6.5568]
[1738112521969,0.03,229.09,229.02,20.17620901]
[1738112522349,0.03,229.09,229.03,1.65399]
[1738112522544,0.03,229.09,229.03,1.5285]
[1738112523252,20.17620901,229.05,229.03,1.5285]
[1738112524973,23.776884,229.06,229.03,1.5285]
[1738112525274,20.17620901,229.07,229.03,1.5285]
[1738112526369,23.902374,229.06,228.98,20.17620901]
[1738112526579,20.20620901,229.04,228.96,20.17620901]
[1738112527773,0.03,229.04,228.98,20.17620901]
[1738112527960,0.03,229.04,229.02,20.17620901]
[1738112528155,0.03,229.09,229.03,1.5793]
[1738112528344,0.03,229.09,229.03,21.75550901]
[1738112529373,20.20620901,229.09,229.03,1.5793]
[1738112529553,20.17620901,229.07,229.03,1.5793]
[1738112530568,12.59861182,229.07,228.98,12.59861182]
[1738112530878,23.776884,229.04,228.98,12.59861182]
[1738112531252,23.776884,229.04,228.97,1.5264]
[1738112531453,12.59861182,229.03,228.97,1.5264]
[1738112531661,12.59861182,228.99,228.97,1.5264]
[1738112531871,23.776884,228.98,228.91,1.6163]
[1738112532171,12.59861182,228.97,228.91,1.6163]
[1738112532577,23.776884,228.98,228.91,1.6163]
[1738112532777,20.17211011,228.99,228.92,20.17211011]
[1738112532978,20.20211011,229.04,228.94,20.17211011]
[1738112533179,20.20211011,229.04,228.96,20.17211011]
[1738112533579,23.776884,229.03,228.96,20.17211011]
[1738112534482,20.20211011,229.04,228.96,20.17211011]
[1738112534982,20.20211011,229.04,228.96,24.53951011]
[1738112535584,0.03,229.04,228.96,24.53951011]
[1738112536179,0.03,229.04,228.98,20.17211011]
[1738112537277,0.03,229.04,228.99,4.367]
[1738112537458,0.03,229.04,228.98,20.17211011]
[1738112538178,20.17211011,229.02,228.94,20.17211011]
[1738112538373,20.17211011,229.02,228.92,20.17211011]
[1738112538770,20.17211011,229.02,228.94,20.17211011]
[1738112538978,20.20211011,229.04,228.96,20.17211011]
[1738112539187,0.03,229.04,228.98,20.17211011]
[1738112539497,0.03,229.04,229.0,20.17211011]
[1738112539691,0.03,229.04,229.03,1.5959]
[1738112541697,20.20211011,229.04,228.98,1.5744]
[1738112542000,20.17211011,229.02,228.98,1.5744]
[1738112543208,20.17211011,229.02,228.94,20.17211011]
[1738112543495,20.17211011,229.0,228.92,27.84001011]
[1738112544068,20.17211011,229.0,228.96,0.063]
[1738112545079,20.17211011,228.98,228.96,0.063]
[1738112545289,23.776884,228.97,228.96,0.063]
[1738112545588,20.17211011,228.98,228.96,0.063]
[1738112545792,20.17211011,229.0,228.96,0.063]
[1738112547501,20.20211011,229.04,228.96,20.23511011]
[1738112547675,0.03,229.04,228.98,20.17211011]
[1738112548887,0.03,229.04,228.99,1.5723]
[1738112549289,0.03,229.04,229.02,24.53851011]
[1738112549898,0.03,229.04,229.0,20.17211011]
[1738112550492,0.03,229.04,229.02,20.17211011]
[1738112552701,0.03,229.04,229.02,16.96085942]
[1738112556493,0.03,229.04,229.03,0.12549]
[1738112557609,0.03,229.04,229.03,4.49169]
[1738112558108,0.03,229.09,229.03,28.268574]
[1738112558308,0.03,229.09,229.08,12.59455942]
[1738112560296,0.03,229.09,229.08,16.95975942]
[1738112563713,0.03,229.09,229.06,12.59455942]
[1738112564100,0.03,229.09,229.08,12.59455942]
[1738112565522,82.5,229.2,229.13,20.0]
[1738112565824,0.03,229.21,229.19,12.59455942]
[1738112566793,0.03,229.21,229.17,12.59455942]
[1738112568515,0.03,229.21,229.18,12.59455942]
[1738112568920,0.03,229.2,229.18,12.59455942]
[1738112570704,12.59455942,229.19,229.11,12.59455942]
[1738112571394,12.59455942,229.17,229.09,16.95955942]
[1738112571724,12.59455942,229.19,229.11,12.59455942]
[1738112574414,12.59455942,229.19,229.11,16.95925942]
[1738112575029,0.03,229.2,229.11,16.95925942]
[1738112575228,0.03,229.2,229.13,12.59455942]
[1738112575820,12.59455942,229.19,229.11,12.59455942]
[1738112577228,12.59455942,229.19,229.11,16.95915942]
[1738112580131,12.59455942,229.17,229.09,12.59455942]
[1738112580329,12.59455942,229.17,229.09,16.95945942]
[1738112580532,12.59455942,229.15,229.07,12.59455942]
[1738112580832,12.59455942,229.15,229.07,16.95995942]
[1738112581835,12.59455942,229.15,229.07,12.59455942]
[1738112582236,12.59455942,229.15,229.08,0.063]
[1738112582429,95.09455942,229.19,229.11,12.59455942]
[1738112582632,82.5,229.19,229.13,12.59455942]
[1738112583433,0.03,229.2,229.15,12.59455942]
[1738112583640,0.03,229.2,229.17,12.59455942]
[1738112584354,0.03,229.2,229.19,12.59455942]
[1738112584526,0.03,229.2,229.19,12.72004942]
[1738112585456,0.03,229.2,229.19,12.59455942]
[1738112585752,0.03,229.2,229.19,12.72004942]
[1738112585935,0.03,229.2,229.19,17.08314942]
[1738112586250,0.03,229.21,229.2,0.12549]
[1738112587227,0.03,229.24,229.2,25.444774]
[1738112587456,0.03,229.24,229.23,20.12549]
[1738112587659,0.03,229.24,229.23,32.72004942]
[1738112587967,0.03,229.24,229.23,69.09149284]
[1738112588457,0.03,229.24,229.23,37.08244942]
[1738112588956,0.03,229.24,229.23,32.59455942]
[1738112589634,0.03,229.24,229.23,32.72004942]
[1738112590852,0.03,229.24,229.23,32.59455942]
[1738112591057,0.03,229.24,229.23,32.72004942]
[1738112591235,0.03,229.24,229.23,32.59455942]
[1738112592447,0.03,229.24,229.2,1.5424]
[1738112593555,0.03,229.24,229.19,12.59455942]
[1738112594060,0.03,229.24,229.19,16.95765942]
[1738112602165,0.03,229.24,229.23,12.59455942]
[1738112603464,0.03,229.24,229.23,12.72004942]
[1738112603653,0.03,229.24,229.23,17.08244942]
[1738112607273,0.03,229.27,229.25,24.48749]
[1738112607566,0.0001,229.27,229.25,44.87004942]
[1738112607780,0.03,229.31,229.25,44.87004942]
[1738112607941,0.03,229.31,229.3,12.59455942]
[1738112608546,0.03,229.31,229.3,12.72004942]
[1738112609076,0.03,229.31,229.3,17.08104942]
[1738112611373,12.59455942,229.44,229.3,40.85793342]
[1738112611679,0.0001,229.32,229.31,28.263274]
[1738112611844,0.0001,229.32,229.31,40.85783342]
[1738112612043,0.03,229.47,229.35,0.12549]
[1738112612246,0.03,229.47,229.4,0.12549]
[1738112612484,0.03,229.47,229.42,12.59455942]
[1738112612852,0.03,229.47,229.41,12.59455942]
[1738112613377,0.03,229.47,229.42,4.3588]
[1738112613980,0.03,229.47,229.41,12.59455942]
[1738112614160,12.62455942,229.47,229.39,32.59455942]
[1738112614489,12.62455942,229.47,229.39,12.59455942]
[1738112614661,12.62455942,229.43,229.33,12.59455942]
[1738112614960,12.59455942,229.4,229.33,12.59455942]
[1738112616062,12.59455942,229.42,229.33,16.95485942]
[1738112617180,0.03,229.43,229.37,12.59455942]
[1738112617386,0.03,229.43,229.39,12.59455942]
[1738112617585,0.03,229.43,229.36,4.3599]
[1738112617586,0.03,229.43,229.41,12.59455942]
[1738112618883,0.03,229.43,229.41,16.95335942]
[1738112621697,0.03,229.43,229.41,12.59455942]
[1738112621861,0.03,229.43,229.39,16.95375942]
[1738112622184,0.03,229.43,229.39,12.59455942]
[1738112622592,0.03,229.43,229.37,16.95415942]
[1738112622966,0.03,229.43,229.39,12.59455942]
[1738112623488,0.03,229.43,229.37,12.59455942]
[1738112624965,12.62455942,229.43,229.37,20.0]
[1738112625164,12.62455942,229.43,229.35,12.59455942]
[1738112625367,12.59455942,229.41,229.33,12.59455942]
[1738112625984,12.59455942,229.39,229.31,12.59455942]
[1738112627188,6.3532,229.43,229.37,12.59455942]
[1738112627493,0.03,229.43,229.39,12.59455942]
[1738112627975,0.03,229.41,229.39,12.59455942]
[1738112628788,0.03,229.41,229.39,16.95385942]
[1738112629791,0.03,229.41,229.39,12.59455942]
[1738112630169,0.03,229.41,229.39,16.95385942]
[1738112640894,0.03,229.41,229.4,4.48459]
[1738112641098,0.03,229.43,229.42,20.12549]
[1738112641281,0.0001,229.43,229.42,56.49693342]
[1738112642595,0.0001,229.43,229.42,60.85573342]
[1738112642795,0.0001,229.43,229.42,36.95335942]
[1738112646609,0.0001,229.43,229.42,32.59455942]
[1738112646790,0.0001,229.43,229.4,12.59455942]
[1738112647499,0.0001,229.43,229.34,12.59455942]
[1738112647500,12.59455942,229.41,229.34,12.59455942]
[1738112647706,0.0001,229.43,229.33,0.063]
[1738112647707,12.59455942,229.39,229.33,0.063]
[1738112647902,18.75005942,229.39,229.33,0.063]
[1738112648101,12.59455942,229.37,229.33,0.063]
[1738112648316,12.59455942,229.35,229.33,0.063]
[1738112648991,13.37605942,229.37,229.33,0.063]
[1738112649190,0.7815,229.37,229.33,0.063]
[1738112649782,0.12559,229.43,229.34,12.59455942]
[1738112649783,13.37605942,229.42,229.34,12.59455942]
[1738112650013,0.7815,229.42,229.34,12.59455942]
[1738112650193,0.0001,229.43,229.38,12.59455942]
[1738112651003,0.0001,229.43,229.4,12.59455942]
[1738112651410,0.0001,229.43,229.38,4.3595]
[1738112651411,0.0001,229.43,229.38,16.95405942]
[1738112652027,0.0001,229.43,229.38,12.59455942]
[1738112652636,0.0001,229.43,229.36,20.09085084]
[1738112652940,0.0001,229.43,229.38,20.09085084]
[1738112653526,0.0001,229.43,229.42,20.09085084]
[1738112653819,0.0001,229.43,229.38,20.09085084]
[1738112654026,0.0001,229.43,229.36,20.09085084]
[1738112655127,20.09095084,229.43,229.36,20.09085084]
[1738112655620,20.09095084,229.43,229.34,24.45095084]
[1738112656130,20.09095084,229.43,229.36,20.09085084]
[1738112656309,0.0001,229.43,229.38,20.09085084]
[1738112657029,0.0001,229.43,229.36,24.45075084]
[1738112657908,0.0001,229.43,229.38,20.09085084]
[1738112658425,0.0001,229.43,229.38,24.45025084]
[1738112659629,0.0001,229.43,229.36,20.09085084]
[1738112659800,20.09095084,229.43,229.34,24.45115084]
[1738112661831,0.0001,229.43,229.36,20.09085084]
[1738112662010,0.0001,229.43,229.42,20.09085084]
[1738112663730,0.0001,229.43,229.42,24.44965084]
[1738112663927,0.0001,229.43,229.42,20.09085084]
[1738112664109,0.0001,229.43,229.42,24.44965084]
[1738112665133,0.0001,229.43,229.42,24.57514084]
[1738112666025,0.0001,229.43,229.42,24.44965084]
[1738112666208,0.0001,229.43,229.42,20.09085084]
[1738112666721,0.0001,229.43,229.41,4.3589]
[1738112667329,0.0001,229.43,229.4,40.09085084]
[1738112667528,0.0001,229.43,229.37,4.3596]
[1738112667732,20.09095084,229.43,229.36,24.45065084]
[1738112669429,20.09095084,229.43,229.37,20.0]
[1738112670112,20.09095084,229.43,229.36,24.45065084]
[1738112670630,0.0001,229.43,229.36,24.45065084]
[1738112670840,0.0001,229.43,229.38,20.09085084]
[1738112671933,0.0001,229.43,229.38,24.45035084]
[1738112672239,0.0001,229.43,229.42,20.09085084]
[1738112672537,0.0001,229.43,229.42,19.45552649]
[1738112673332,0.0001,229.43,229.42,23.81432649]
[1738112674629,0.0001,229.43,229.42,12.5511833]
[1738112675832,0.0001,229.43,229.42,12.6766733]
[1738112676137,0.0001,229.43,229.42,36.4535573]
[1738112676739,0.0001,229.43,229.42,40.8123573]
[1738112677438,0.03,229.45,229.44,0.12549]
[1738112677637,0.03,229.45,229.44,12.6766733]
[1738112677938,0.03,229.47,229.46,20.12549]
[1738112678114,0.03,229.47,229.46,45.2278566]
[1738112679326,0.03,229.47,229.46,49.5858566]
[1738112680042,0.03,229.47,229.46,37.0346733]
[1738112680338,0.03,229.47,229.46,73.3627406]
[1738112680339,0.0001,229.47,229.46,73.3627406]
[1738112680735,0.03,229.51,229.5,20.12549]
[1738112680934,0.03,229.51,229.5,56.4535573]
[1738112681940,0.03,229.51,229.5,60.8107573]
[1738112682134,0.03,229.51,229.5,36.9083833]
[1738112683343,0.03,229.51,229.5,37.0338733]
[1738112683644,0.03,229.51,229.5,36.9083833]
[1738112683823,0.03,229.51,229.5,12.5511833]
[1738112684024,0.03,229.51,229.46,12.5511833]
[1738112684540,0.03,229.51,229.44,12.5511833]
[1738112685040,12.5811833,229.51,229.42,15.6111833]
[1738112685226,12.5811833,229.51,229.42,12.5511833]
[1738112685428,12.5811833,229.51,229.42,16.9098833]
[1738112686337,12.5811833,229.51,229.42,12.5511833]
[1738112686544,12.5511833,229.49,229.4,12.5511833]
[1738112687247,12.5511833,229.49,229.4,16.9102833]
[1738112688148,12.5511833,229.49,229.42,12.5511833]
[1738112688347,12.5511833,229.49,229.4,32.5511833]
[1738112688735,12.5511833,229.49,229.4,12.5511833]
[1738112691045,12.5511833,229.49,229.4,16.9102833]
[1738112693136,0.03,229.51,229.44,12.5511833]
[1738112694440,12.5511833,229.47,229.38,12.5511833]
[1738112695253,12.5511833,229.47,229.41,20.0]
[1738112695652,12.5511833,229.49,229.41,20.0]
[1738112695849,12.5811833,229.51,229.42,12.5511833]
[1738112696157,12.5511833,229.49,229.39,16.9104833]
[1738112696358,12.5511833,229.47,229.39,16.9104833]
[1738112697262,12.5511833,229.49,229.41,12.5511833]
[1738112697639,12.5811833,229.51,229.41,12.5511833]
[1738112697851,12.5811833,229.51,229.43,12.5511833]
[1738112698767,12.5511833,229.49,229.41,12.5511833]
[1738112698936,12.5511833,229.47,229.39,32.5511833]
[1738112699655,12.5511833,229.49,229.41,12.5511833]
[1738112699871,0.03,229.51,229.39,20.0]
[1738112699872,0.03,229.51,229.45,12.5511833]
[1738112700462,0.03,229.51,229.43,12.5511833]
[1738112700663,12.5511833,229.5,229.41,12.5511833]
[1738112701174,12.5511833,229.48,229.39,12.5511833]
[1738112701351,12.5511833,229.46,229.37,12.5511833]
[1738112701666,0.03,229.51,229.45,12.5511833]